bitfinex/quotes_SOLUSD_20230104
["timestamp","ask_amount","ask_price","bid_price","bid_amount"]
[1672817735336,53.69,13.982,13.974,21.48724231]
[1672817735528,53.68,13.984,13.974,21.48724231]
[1672817735738,53.68,13.984,13.975,30.0]
[1672817736069,47.3311,13.985,13.977,30.0]
[1672817736267,312.0,13.978,13.977,30.0]
[1672817736472,312.0,13.978,13.977,50.0]
[1672817736689,53.68,13.984,13.977,71.48724231]
[1672817737014,101.0111,13.985,13.977,71.48724231]
[1672817737214,91.67309479,13.983,13.977,71.48724231]
[1672817737422,91.67309479,13.983,13.978,20.0]
[1672817737629,91.67309479,13.983,13.979,30.0]
[1672817737836,91.67309479,13.983,13.98,20.0]
[1672817738067,91.67309479,13.983,13.98,41.48724231]
[1672817738275,91.67309479,13.983,13.981,51.48724231]
[1672817738489,91.67309479,13.983,13.982,20.0]
[1672817738692,91.67309479,13.983,13.982,41.48724231]
[1672817739324,51.19174469,13.983,13.982,41.48724231]
[1672817739653,0.00174469,13.983,13.982,41.48724231]
[1672817740995,0.00174469,13.983,13.982,31.48724231]
[1672817742263,20.0,14.027,13.99,30.0]
[1672817742467,20.0,14.027,13.991,53.66]
[1672817742682,111.9212,14.01,13.992,50.0]
[1672817742896,53.6,14.005,13.992,71.48724231]
[1672817743099,53.6,14.005,13.993,63.35079316]
[1672817743310,53.6,14.005,13.995,30.0]
[1672817743531,53.6,14.005,13.996,20.0]
[1672817743755,30.0,14.004,13.996,20.0]
[1672817743938,53.61,14.003,13.996,20.0]
[1672817744149,53.61,14.003,13.988,20.0]
[1672817744360,112.1521,14.003,13.987,30.0]
[1672817744583,53.61,14.002,13.989,20.0]
[1672817744790,53.61,14.002,13.983,25.32]
[1672817745114,53.61,14.002,13.987,21.48724231]
[1672817745309,312.0,13.994,13.98,24.76]
[1672817745528,53.65,13.993,13.975,30.0]
[1672817745728,165.8021,13.993,13.975,30.0]
[1672817745941,165.8021,13.993,13.981,21.48724231]
[1672817746152,165.8021,13.993,13.975,30.0]
[1672817746153,30.0,13.991,13.975,30.0]
[1672817746363,53.66,13.99,13.975,30.0]
[1672817746578,109.95728182,13.99,13.976,20.0]
[1672817746900,53.66,13.989,13.978,21.48724231]
[1672817747116,53.65,13.992,13.978,21.48724231]
[1672817747511,53.65,13.992,13.979,30.0]
[1672817749425,312.0,13.985,13.979,30.0]
[1672817749615,312.0,13.985,13.983,21.48724231]
[1672817749924,312.0,13.985,13.979,30.0]
[1672817749925,312.0,13.985,13.984,21.54724231]
[1672817750355,53.66,13.99,13.977,30.0]
[1672817750566,53.66,13.99,13.983,21.48724231]
[1672817750992,53.65,13.992,13.983,21.48724231]
[1672817751410,53.65,13.992,13.977,30.0]
[1672817751609,112.1521,13.993,13.978,42.48724231]
[1672817751818,73.007725,14.01,13.981,30.0]
[1672817751819,22.7594,14.003,13.981,30.0]
[1672817752032,22.7594,14.003,13.982,23.27]
[1672817752258,22.7594,14.003,13.983,30.0]
[1672817752468,22.7594,14.003,13.985,30.0]
[1672817752675,22.7594,14.003,13.986,44.77]
[1672817753000,22.7594,14.003,13.986,22.25724231]
[1672817753001,53.61,14.002,13.986,22.25724231]
[1672817753201,53.61,14.002,13.987,51.48724231]
[1672817753518,312.0,14.002,13.988,23.94124231]
[1672817753941,312.0,14.002,13.989,51.48724231]
[1672817754154,365.61,14.002,13.991,30.0]
[1672817754363,312.0,14.002,13.991,30.0]
[1672817754556,53.61,14.004,13.993,30.0]
[1672817754768,101.4487,14.005,13.994,20.0]
[1672817754990,53.6,14.005,13.995,30.0]
[1672817755200,53.6,14.005,13.996,20.0]
[1672817755419,53.6,14.005,13.996,41.48724231]
[1672817755726,53.6,14.005,13.997,21.48724231]
[1672817756663,53.6,14.005,13.996,20.0]
[1672817756881,53.6,14.005,13.998,21.48724231]
[1672817757092,175.6477222,14.006,13.995,30.0]
[1672817757297,175.6477222,14.006,13.999,21.48724231]
[1672817757507,312.0,14.0,13.995,30.0]
[1672817758043,312.0,14.0,13.99,30.0]
[1672817758044,312.0,14.0,13.975,294.6]
[1672817758254,53.62,13.999,13.981,30.0]
[1672817758467,53.62,13.999,13.985,21.48724231]
[1672817758880,53.61,14.003,13.986,30.0]
[1672817759078,101.0073,14.004,13.986,30.0]
[1672817759289,101.0073,14.004,13.986,51.48724231]
[1672817759499,101.0073,14.004,13.986,30.0]
[1672817759831,47.3973,14.004,13.987,38.37864528]
[1672817760152,47.3973,14.004,13.988,30.0]
[1672817760344,47.3973,14.004,13.988,51.48724231]
[1672817760555,47.3973,14.004,13.989,84.02588759]
[1672817760767,47.3973,14.004,13.99,30.0]
[1672817760975,47.3973,14.004,13.991,20.0]
[1672817761186,47.3973,14.004,13.992,30.0]
[1672817761407,47.3973,14.004,13.993,20.0]
[1672817761598,312.0,13.998,13.993,20.0]
[1672817761812,312.0,13.998,13.994,21.48724231]
[1672817762038,312.0,13.998,13.99,30.0]
[1672817762332,312.0,13.998,13.994,21.48724231]
[1672817762648,53.61,14.003,13.988,51.48724231]
[1672817763084,53.61,14.003,13.989,20.0]
[1672817763716,53.61,14.003,13.988,21.48724231]
[1672817763928,53.61,14.003,13.985,119.6849]
[1672817763929,30.0,14.002,13.985,119.6849]
[1672817764135,53.62,14.001,13.985,119.6849]
[1672817765192,53.62,14.001,13.985,141.17214231]
[1672817765619,53.62,14.001,13.986,21.48724231]
[1672817765825,53.62,14.001,13.987,30.0]
[1672817766036,100.5291,14.002,13.987,30.0]
[1672817766360,100.5291,14.002,13.989,30.0]
[1672817766569,46.9191,14.002,13.99,20.0]
[1672817766778,46.9191,14.002,13.991,30.0]
[1672817766997,46.9191,14.002,13.991,51.48724231]
[1672817767308,46.9191,14.002,13.992,41.48724231]
[1672817767499,312.0,13.998,13.992,41.48724231]
[1672817767710,312.0,13.998,13.993,21.48724231]
[1672817767921,312.0,13.998,13.995,30.0]
[1672817768130,312.0,13.998,13.996,20.0]
[1672817768363,312.0,13.998,13.996,41.48724231]
[1672817768549,312.0,13.998,13.997,21.48724231]
[1672817768761,312.0,13.998,13.997,41.48724231]
[1672817770881,312.0,13.998,13.985,196.2568]
[1672817771198,312.0,13.998,13.992,21.48724231]
[1672817772155,312.0,13.998,13.993,20.0]
[1672817772545,312.0,13.998,13.994,21.48724231]
[1672817773076,312.0,13.998,13.995,20.0]
[1672817773494,312.0,13.998,13.996,21.48724231]
[1672817773721,312.0,13.998,13.997,20.0]
[1672817774246,312.0,13.998,13.997,41.48724231]
[1672817774858,312.0,13.998,13.997,0.48724231]
[1672817775069,53.63,13.998,13.985,119.6849]
[1672817775282,53.61,14.003,13.985,141.17214231]
[1672817775911,53.61,14.003,13.986,30.0]
[1672817776450,53.61,14.003,13.988,30.0]
[1672817776643,71.6165,14.004,13.989,20.0]
[1672817776973,71.6165,14.004,13.99,30.0]
[1672817777185,71.6165,14.004,13.992,30.0]
[1672817777399,71.6165,14.004,13.993,20.0]
[1672817777710,71.6165,14.004,13.994,30.0]
[1672817777901,312.0,14.003,13.994,51.48724231]
[1672817778110,312.0,14.003,13.995,20.0]
[1672817778343,312.0,14.003,13.995,41.48724231]
[1672817778659,53.61,14.002,13.995,20.0]
[1672817778846,53.61,14.002,13.993,20.0]
[1672817779055,53.61,14.002,13.991,20.0]
[1672817779276,53.61,14.003,13.991,20.0]
[1672817779480,53.61,14.003,13.985,119.6849]
[1672817779689,101.1619,14.003,13.986,20.0]
[1672817779895,30.0,14.002,13.986,20.0]
[1672817780119,53.62,14.001,13.986,20.0]
[1672817780436,53.61,14.002,13.985,140.67214231]
[1672817780857,101.1619,14.002,13.986,30.0]
[1672817781585,101.1619,14.002,13.988,30.0]
[1672817781798,47.5519,14.002,13.99,36.91046606]
[1672817782005,312.0,13.999,13.991,20.0]
[1672817782219,312.0,13.999,13.991,41.48724231]
[1672817782424,312.0,13.999,13.991,20.0]
[1672817782640,312.0,13.999,13.992,21.48724231]
[1672817782851,312.0,13.999,13.993,20.0]
[1672817783062,53.62,14.001,13.993,20.0]
[1672817783481,53.62,14.001,13.993,41.48724231]
[1672817784736,53.62,14.001,13.985,119.1849]
[1672817784954,53.62,14.001,13.988,21.48724231]
[1672817785170,93.27175562,14.001,13.988,21.48724231]
[1672817786548,142.61272408,14.001,13.988,0.48724231]
[1672817786760,30.0,14.0,13.985,119.1849]
[1672817786956,53.62,13.999,13.989,42.97448462]
[1672817787161,53.62,13.999,13.989,21.48724231]
[1672817787583,312.0,13.99,13.989,21.48724231]
[1672817788015,312.0,13.99,13.986,20.0]
[1672817788230,312.0,13.99,13.984,21.48724231]
[1672817788425,187.5759,13.997,13.986,30.0]
[1672817788761,76.6674,13.997,13.987,20.0]
[1672817789798,76.6674,13.997,13.987,41.48724231]
[1672817790011,76.6674,13.997,13.987,20.0]
[1672817791492,312.0,13.99,13.987,20.0]
[1672817791698,280.80000001,13.99,13.987,20.0]
[1672817792102,280.80000001,13.99,13.985,21.48724231]
[1672817792308,280.80000001,13.99,13.978,53.43189517]
[1672817792530,53.64,13.995,13.978,53.43189517]
[1672817792531,53.66,13.989,13.978,38.00867142]
[1672817792746,141.8054,13.995,13.978,38.00867142]
[1672817792747,312.0,13.984,13.978,38.00867142]
[1672817793474,312.0,13.984,13.978,16.52142911]
[1672817793887,53.66,13.99,13.978,16.52142911]
[1672817794317,89.87576896,13.99,13.978,16.52142911]
[1672817794518,103.00096846,13.99,13.978,16.52142911]
[1672817794936,103.00096846,13.99,13.967,30.0]
[1672817794937,75.31023246,13.989,13.972,21.48724231]
[1672817795151,75.31023246,13.989,13.969,36.91046606]
[1672817795152,53.67,13.988,13.969,36.91046606]
[1672817795361,14.43,13.98,13.964,36.91046606]
[1672817795568,53.7,13.979,13.96,150.12026606]
[1672817795782,30.0,13.978,13.96,113.2098]
[1672817795998,53.71,13.977,13.96,113.2098]
[1672817796422,30.0,13.975,13.953,36.91046606]
[1672817796627,14.53,13.97,13.955,36.91046606]
[1672817796962,53.74,13.969,13.955,36.91046606]
[1672817797175,101.63543278,13.969,13.955,36.91046606]
[1672817797391,30.0,13.967,13.955,36.91046606]
[1672817797603,312.0,13.961,13.952,166.43519163]
[1672817797794,312.0,13.961,13.952,129.52472557]
[1672817798003,312.0,13.961,13.953,21.48724231]
[1672817798220,312.0,13.961,13.954,20.0]
[1672817798547,312.0,13.961,13.953,41.48724231]
[1672817798756,312.0,13.961,13.955,21.48724231]
[1672817798954,312.0,13.961,13.953,20.0]
[1672817799791,312.0,13.961,13.952,129.52472557]
[1672817800646,53.76,13.964,13.953,21.48724231]
[1672817800833,14.54,13.98,13.954,30.0]
[1672817801051,156.6326,13.976,13.955,20.0]
[1672817801260,181.1072,13.988,13.955,41.48724231]
[1672817801594,30.0,13.985,13.957,30.0]
[1672817801806,30.0,13.983,13.958,20.0]
[1672817801997,30.0,13.981,13.959,30.0]
[1672817802203,53.7,13.98,13.96,20.0]
[1672817802414,30.0,13.979,13.96,20.0]
[1672817802736,53.7,13.978,13.961,21.48724231]
[1672817802946,30.0,13.977,13.962,20.0]
[1672817803290,53.71,13.976,13.963,21.48724231]
[1672817803487,96.09679381,13.976,13.963,21.48724231]
[1672817803694,72.38679381,13.975,13.964,20.0]
[1672817804012,53.72,13.974,13.964,41.48724231]
[1672817804218,53.7,13.978,13.964,41.48724231]
[1672817804644,142.33161746,13.978,13.964,41.48724231]
[1672817804839,77.36278812,13.977,13.964,41.48724231]
[1672817805172,142.34161746,13.976,13.956,187.6899]
[1672817805378,30.0,13.975,13.96,21.48724231]
[1672817805572,30.0,13.973,13.96,0.48724231]
[1672817805778,30.0,13.971,13.96,0.48724231]
[1672817805992,53.74,13.97,13.96,0.48724231]
[1672817806527,30.0,13.969,13.96,0.48724231]
[1672817806739,53.74,13.968,13.957,21.0]
[1672817806939,113.71325272,13.968,13.957,21.48724231]
[1672817807145,53.74,13.968,13.957,0.48724231]
[1672817807356,53.74,13.969,13.957,0.48724231]
[1672817807571,53.74,13.969,13.954,21.0]
[1672817807898,53.74,13.969,13.952,159.52472557]
[1672817808215,103.8785478,14.013,13.953,51.48724231]
[1672817808216,312.0,13.964,13.953,51.48724231]
[1672817808627,312.0,13.964,13.954,41.48724231]
[1672817808837,312.0,13.964,13.955,30.0]
[1672817809047,24.6204,13.971,13.956,20.0]
[1672817809261,24.6204,13.971,13.956,41.48724231]
[1672817809468,24.6204,13.971,13.957,51.48724231]
[1672817809791,24.6204,13.971,13.958,41.48724231]
[1672817810320,24.6204,13.971,13.959,21.48724231]
[1672817810524,24.6204,13.971,13.961,30.0]
[1672817810740,24.6204,13.971,13.962,20.0]
[1672817810945,24.6204,13.971,13.963,30.0]
[1672817811154,46.5242,13.975,13.964,20.0]
[1672817811480,46.5242,13.975,13.964,41.48724231]
[1672817811691,46.5242,13.975,13.965,21.48724231]
[1672817811899,14.53,13.97,13.966,20.0]
[1672817812095,312.0,13.966,13.965,21.48724231]
[1672817812311,312.0,13.966,13.958,47.4209]
[1672817812519,312.0,13.966,13.96,21.48724231]
[1672817813042,53.72,13.973,13.96,21.48724231]
[1672817813243,53.72,13.975,13.96,21.48724231]
[1672817814211,53.72,13.975,13.961,20.0]
[1672817815044,30.0,13.974,13.961,20.0]
[1672817815248,53.72,13.973,13.956,89.84284231]
[1672817815461,30.0,13.972,13.956,89.84284231]
[1672817815666,30.0,13.97,13.956,41.48724231]
[1672817815882,30.0,13.97,13.956,20.0]
[1672817815883,53.74,13.969,13.956,20.0]
[1672817816083,312.0,13.957,13.955,20.0]
[1672817816499,312.0,13.957,13.952,129.52472557]
[1672817816831,312.0,13.957,13.955,21.48724231]
[1672817817879,312.0,13.957,13.956,20.0]
[1672817818301,312.0,13.957,13.956,41.48724231]
[1672817819141,53.75,13.965,13.956,41.48724231]
[1672817819461,53.75,13.967,13.956,41.48724231]
[1672817821242,53.75,13.967,13.956,20.0]
[1672817821442,53.75,13.967,13.953,20.0]
[1672817821653,30.0,13.966,13.953,20.0]
[1672817821980,53.75,13.965,13.953,20.0]
[1672817822178,312.0,13.954,13.953,20.0]
[1672817823451,312.0,13.954,13.952,129.52472557]
[1672817823661,53.76,13.963,13.951,291.71613762]
[1672817823976,53.76,13.963,13.95,129.03320399]
[1672817824178,74.53347601,13.962,13.95,129.03320399]
[1672817824398,30.0,13.96,13.95,129.03320399]
[1672817824605,30.0,13.958,13.95,129.03320399]
[1672817824824,53.79,13.957,13.95,129.03320399]
[1672817825011,30.0,13.956,13.95,129.03320399]
[1672817825349,53.79,13.955,13.95,129.03320399]
[1672817826181,53.79,13.955,13.95,150.5204463]
[1672817826377,53.78,13.959,13.95,150.5204463]
[1672817826588,312.0,13.951,13.95,150.5204463]
[1672817827547,53.76,13.963,13.951,155.84433172]
[1672817827743,110.9568,13.969,13.952,20.0]
[1672817827954,53.74,13.968,13.952,41.48724231]
[1672817828173,53.74,13.968,13.953,21.48724231]
[1672817828396,53.74,13.968,13.954,20.0]
[1672817829653,53.74,13.968,13.955,21.48724231]
[1672817830060,53.74,13.968,13.956,20.0]
[1672817830594,312.0,13.959,13.957,21.48724231]
[1672817831320,312.0,13.959,13.956,20.0]
[1672817831535,312.0,13.959,13.953,21.48724231]
[1672817831741,312.0,13.959,13.954,20.0]
[1672817832069,312.0,13.959,13.952,20.0]
[1672817832259,312.0,13.959,13.953,21.48724231]
[1672817832689,312.0,13.959,13.954,20.0]
[1672817832911,312.0,13.959,13.955,30.0]
[1672817833108,312.0,13.959,13.956,20.0]
[1672817833753,312.0,13.959,13.955,20.0]
[1672817834062,312.0,13.959,13.956,21.48724231]
[1672817834469,53.74,13.968,13.957,20.0]
[1672817834703,53.72,13.973,13.957,20.0]
[1672817834912,30.0,13.972,13.957,41.48724231]
[1672817835124,53.73,13.971,13.957,41.48724231]
[1672817835359,30.0,13.97,13.957,41.48724231]
[1672817835666,53.74,13.969,13.957,20.0]
[1672817835867,53.74,13.969,13.953,114.254]
[1672817835868,53.74,13.969,13.956,21.48724231]
[1672817836086,30.0,13.968,13.957,20.0]
[1672817836282,53.75,13.967,13.957,20.0]
[1672817837555,312.0,13.959,13.957,20.0]
[1672817839553,53.75,13.965,13.956,21.48724231]
[1672817839765,30.0,13.964,13.946,123.15045693]
[1672817839957,30.0,13.962,13.948,129.08839956]
[1672817840170,30.0,13.96,13.947,127.17335745]
[1672817840384,53.78,13.959,13.947,127.17335745]
[1672817840593,53.78,13.959,13.946,123.15045693]
[1672817841761,53.78,13.959,13.943,21.48724231]
[1672817841762,53.78,13.959,13.948,129.08839956]
[1672817841971,30.0,13.958,13.948,129.08839956]
[1672817842616,312.0,13.953,13.948,129.08839956]
[1672817847308,207.32098488,13.959,13.948,129.08839956]
[1672817847309,52.55386145,13.959,13.948,129.08839956]
[1672817847538,111.3226,13.965,13.95,127.33207586]
[1672817847730,111.3226,13.965,13.952,126.72127731]
[1672817847941,111.3226,13.965,13.95,127.33207586]
[1672817848164,111.3226,13.965,13.949,121.66042609]
[1672817848165,30.0,13.963,13.949,121.66042609]
[1672817848384,53.77,13.962,13.949,121.66042609]
[1672817848573,53.77,13.962,13.945,128.39931286]
[1672817848786,53.77,13.962,13.947,127.17335745]
[1672817849012,53.77,13.962,13.95,21.48724231]
[1672817849328,53.77,13.962,13.951,125.84433172]
[1672817850154,30.0,13.961,13.951,125.84433172]
[1672817850366,312.0,13.953,13.952,21.48724231]
[1672817850569,312.0,13.953,13.951,125.84433172]
[1672817850792,312.0,13.953,13.937,30.0]
[1672817850793,312.0,13.953,13.938,128.71869633]
[1672817851001,312.0,13.953,13.94,121.44633947]
[1672817851210,312.0,13.953,13.941,20.0]
[1672817851422,312.0,13.953,13.942,120.36877679]
[1672817851740,312.0,13.953,13.944,128.91458185]
[1672817851953,312.0,13.953,13.946,123.15045693]
[1672817852156,312.0,13.953,13.948,129.08839956]
[1672817852787,312.0,13.953,13.947,20.0]
[1672817852991,312.0,13.953,13.943,20.0]
[1672817853420,312.0,13.953,13.944,21.48724231]
[1672817853639,312.0,13.953,13.945,20.0]
[1672817854358,312.0,13.953,13.945,41.48724231]
[1672817856581,53.79,13.956,13.945,41.48724231]
[1672817857822,53.79,13.956,13.945,20.0]
[1672817858032,53.79,13.956,13.942,21.48724231]
[1672817858252,53.79,13.956,13.943,20.0]
[1672817858677,53.79,13.956,13.943,41.48724231]
[1672817858891,53.79,13.956,13.943,20.0]
[1672817859103,53.79,13.956,13.941,20.0]
[1672817859719,312.0,13.95,13.938,41.48724231]
[1672817860569,53.79,13.956,13.938,41.48724231]
[1672817861409,53.79,13.956,13.923,36.91046606]
[1672817861410,14.59,13.95,13.923,36.91046606]
[1672817861625,83.82,13.949,13.932,21.48724231]
[1672817861834,241.6714469,13.949,13.936,21.48724231]
[1672817862030,297.37130835,13.949,13.936,21.48724231]
[1672817862555,30.0,13.947,13.923,30.0]
[1672817862765,53.83,13.946,13.926,21.48724231]
[1672817862976,53.82,13.947,13.926,21.48724231]
[1672817863196,53.82,13.948,13.927,30.0]
[1672817863608,312.0,13.939,13.928,21.48724231]
[1672817864674,53.8,13.953,13.931,30.0]
[1672817864989,312.0,13.944,13.932,21.48724231]
[1672817865199,312.0,13.944,13.933,20.0]
[1672817865509,312.0,13.944,13.934,21.48724231]
[1672817865717,312.0,13.944,13.935,20.0]
[1672817866123,312.0,13.944,13.936,21.48724231]
[1672817866551,312.0,13.944,13.937,20.0]
[1672817866767,312.0,13.944,13.938,30.0]
[1672817866972,53.81,13.952,13.938,51.48724231]
[1672817867185,53.81,13.952,13.94,30.0]
[1672817867509,112.5525,13.953,13.941,20.0]
[1672817867704,112.5525,13.953,13.941,41.48724231]
[1672817867913,112.5525,13.953,13.942,21.48724231]
[1672817868128,112.5525,13.953,13.943,20.0]
[1672817868358,53.81,13.952,13.943,20.0]
[1672817868556,53.81,13.952,13.944,21.48724231]
[1672817869174,53.81,13.952,13.945,20.0]
[1672817869597,53.81,13.952,13.943,21.48724231]
[1672817869909,112.5525,13.953,13.944,20.0]
[1672817870979,112.5525,13.953,13.942,20.0]
[1672817871491,53.81,13.952,13.942,20.0]
[1672817872342,53.81,13.952,13.942,41.48724231]
[1672817872983,365.81,13.952,13.942,41.48724231]
[1672817873833,53.81,13.952,13.942,41.48724231]
[1672817874252,112.5525,13.953,13.942,41.48724231]
[1672817874777,53.81,13.952,13.942,41.48724231]
[1672817876877,312.0,13.949,13.942,41.48724231]
[1672817877826,53.81,13.952,13.942,41.48724231]
[1672817879623,53.81,13.952,13.931,30.0]
[1672817879624,104.7,13.95,13.928,37.20192802]
[1672817879821,104.7,13.95,13.903,109.5521]
[1672817879822,62.54604784,13.94,13.903,109.5521]
[1672817880130,9.03186947,13.936,13.903,109.5521]
[1672817880343,53.87,13.935,13.903,109.5521]
[1672817880533,30.0,13.937,13.911,21.48724231]
[1672817880750,88.12890572,13.936,13.92,21.02]
[1672817880969,312.0,13.936,13.92,105.21]
[1672817881184,312.0,13.936,13.921,58.29224715]
[1672817881498,312.0,13.936,13.922,30.0]
[1672817881687,312.0,13.936,13.923,20.0]
[1672817881903,53.84,13.944,13.923,20.0]
[1672817882108,53.84,13.944,13.923,80.61870195]
[1672817882744,30.0,13.943,13.923,80.61870195]
[1672817882956,30.0,13.941,13.923,80.61870195]
[1672817883173,53.85,13.94,13.923,80.61870195]
[1672817883388,30.0,13.939,13.923,20.0]
[1672817883603,53.86,13.938,13.917,20.0]
[1672817883821,170.6388,13.938,13.916,30.0]
[1672817884136,30.0,13.937,13.916,30.0]
[1672817884339,30.0,13.937,13.912,30.0]
[1672817884340,53.87,13.936,13.912,30.0]
[1672817884538,53.87,13.936,13.913,21.48724231]
[1672817884748,53.86,13.937,13.92,21.02]
[1672817884972,312.0,13.936,13.92,21.02]
[1672817885187,53.87,13.935,13.921,20.0]
[1672817885398,53.87,13.935,13.92,21.02]
[1672817885932,53.87,13.935,13.922,30.0]
[1672817886121,312.0,13.936,13.922,30.0]
[1672817886325,53.87,13.935,13.923,60.61870195]
[1672817886559,30.0,13.934,13.923,58.29224715]
[1672817886771,53.88,13.933,13.911,109.5521]
[1672817886981,53.88,13.933,13.913,58.29224715]
[1672817887197,53.88,13.933,13.914,20.0]
[1672817887811,53.88,13.933,13.915,30.0]
[1672817888027,53.87,13.936,13.916,20.0]
[1672817888453,53.87,13.936,13.917,30.0]
[1672817888766,53.86,13.937,13.918,20.0]
[1672817889383,53.86,13.937,13.92,20.82]
[1672817889717,312.0,13.933,13.921,20.0]
[1672817890231,312.0,13.933,13.922,21.48724231]
[1672817890444,312.0,13.933,13.923,20.0]
[1672817890646,312.0,13.933,13.921,20.0]
[1672817891704,312.0,13.933,13.922,21.48724231]
[1672817891913,312.0,13.933,13.923,20.0]
[1672817892238,312.0,13.933,13.924,58.29224715]
[1672817892759,312.0,13.933,13.925,20.0]
[1672817893161,53.86,13.937,13.926,58.29224715]
[1672817893374,53.86,13.937,13.925,20.0]
[1672817893375,30.0,13.936,13.925,75.51326936]
[1672817893592,53.87,13.935,13.925,20.0]
[1672817893799,30.0,13.934,13.925,20.0]
[1672817894025,53.88,13.933,13.92,20.0]
[1672817894431,53.88,13.933,13.915,21.48724231]
[1672817895167,30.0,13.932,13.915,21.48724231]
[1672817895382,30.0,13.932,13.908,142.5978]
[1672817895383,53.89,13.931,13.908,112.5978]
[1672817895708,30.0,13.93,13.908,112.5978]
[1672817895895,172.8346,13.929,13.904,30.0]
[1672817896107,312.0,13.926,13.909,21.48724231]
[1672817896424,312.0,13.926,13.91,30.0]
[1672817896649,312.0,13.926,13.91,51.02]
[1672817896963,30.0,13.93,13.92,20.82]
[1672817897171,312.0,13.936,13.92,20.82]
[1672817897377,312.0,13.936,13.921,21.48724231]
[1672817897590,312.0,13.936,13.921,79.77948946]
[1672817897791,312.0,13.936,13.922,58.29224715]
[1672817898000,312.0,13.936,13.922,135.29275882]
[1672817898211,312.0,13.936,13.923,97.00051167]
[1672817898429,312.0,13.936,13.923,155.29275882]
[1672817898652,312.0,13.936,13.924,135.29275882]
[1672817898959,30.0,13.939,13.925,113.80551651]
[1672817899172,53.86,13.938,13.926,20.0]
[1672817899369,30.0,13.937,13.926,78.29224715]
[1672817899585,53.87,13.936,13.926,78.29224715]
[1672817900004,53.87,13.936,13.926,20.0]
[1672817900216,53.87,13.936,13.923,57.53426048]
[1672817900420,53.87,13.936,13.924,20.0]
[1672817901156,53.87,13.936,13.92,20.0]
[1672817901913,365.87,13.936,13.921,21.48724231]
[1672817902222,365.87,13.936,13.922,20.0]
[1672817902629,365.87,13.936,13.923,21.48724231]
[1672817903165,365.87,13.936,13.924,20.0]
[1672817904003,30.0,13.935,13.924,20.0]
[1672817904213,53.87,13.934,13.916,20.0]
[1672817904418,165.0735,13.935,13.92,21.48724231]
[1672817904738,53.87,13.935,13.922,30.0]
[1672817904952,312.0,13.936,13.921,75.51326936]
[1672817905267,312.0,13.936,13.923,21.48724231]
[1672817905691,312.0,13.936,13.924,20.0]
[1672817906109,83.87,13.935,13.924,20.0]
[1672817906326,53.87,13.935,13.924,20.0]
[1672817906526,312.0,13.936,13.923,21.48724231]
[1672817906739,312.0,13.936,13.924,41.48724231]
[1672817906947,53.87,13.935,13.924,41.48724231]
[1672817907165,312.0,13.936,13.924,41.48724231]
[1672817907166,312.0,13.936,13.925,57.53426048]